bitfinex/quotes_ETHUSD_20230119
["timestamp","ask_amount","ask_price","bid_price","bid_amount"]
[1674145295290,45.07910366,1537.4,1537.3,0.07101871]
[1674145295479,43.37641007,1537.4,1537.3,0.07101871]
[1674145295709,44.39740162,1537.4,1537.3,0.07101871]
[1674145296138,43.37641007,1537.4,1537.3,0.07101871]
[1674145296303,43.20780488,1537.4,1537.3,0.07101871]
[1674145296512,43.37662829,1537.4,1537.3,0.07101871]
[1674145296726,43.20780488,1537.4,1537.3,0.07101871]
[1674145297039,42.52818486,1537.4,1537.3,0.07101871]
[1674145298089,43.37658431,1537.4,1537.3,0.05679194]
[1674145298335,43.37627429,1537.4,1537.3,0.05679194]
[1674145298543,43.20780488,1537.4,1537.3,0.05679194]
[1674145299100,42.52818486,1537.4,1537.3,0.05679194]
[1674145299246,43.20780488,1537.4,1537.3,0.05679194]
[1674145299773,42.52818486,1537.4,1537.3,0.05679194]
[1674145300634,43.20780488,1537.4,1537.3,0.05679194]
[1674145300850,43.3762711,1537.4,1537.3,0.05679194]
[1674145301294,43.20780488,1537.4,1537.3,0.05679194]
[1674145301993,42.52818486,1537.4,1537.3,0.05679194]
[1674145304130,41.63460002,1537.4,1537.3,0.05679194]
[1674145307428,42.82412068,1537.4,1537.2,0.08019885]
[1674145307580,14.62774759,1537.3,1537.2,0.08019885]
[1674145307786,27.70356759,1537.3,1537.2,0.08019885]
[1674145308054,28.36050002,1537.3,1537.2,0.08019885]
[1674145308435,28.61050002,1537.3,1537.2,0.08019885]
[1674145309236,29.50408486,1537.3,1537.2,0.08019885]
[1674145313022,28.00408486,1537.3,1537.2,0.08019885]
[1674145313176,27.11050002,1537.3,1537.2,0.08019885]
[1674145317771,29.46310052,1537.3,1537.2,0.08019885]
[1674145317917,30.48409207,1537.3,1537.2,0.08019885]
[1674145318128,29.46310052,1537.3,1537.2,0.08019885]
[1674145319281,29.80535942,1537.3,1537.2,0.08019885]
[1674145319505,30.00749304,1537.3,1537.2,0.08019885]
[1674145320171,30.00749304,1537.3,1537.2,0.06412058]
[1674145321233,30.34782355,1537.3,1537.2,0.06412058]
[1674145321436,30.00785454,1537.3,1537.2,0.06412058]
[1674145321649,28.16238275,1537.3,1537.2,0.06412058]
[1674145321965,29.18372982,1537.3,1537.2,0.06412058]
[1674145322400,29.8641766,1537.3,1537.2,0.06412058]
[1674145322540,28.50285454,1537.3,1537.2,0.06412058]
[1674145322755,29.8641766,1537.3,1537.2,0.06412058]
[1674145323328,28.84282355,1537.3,1537.2,0.06412058]
[1674145323543,29.86463699,1537.3,1537.2,0.06412058]
[1674145324127,29.86463332,1537.3,1537.2,0.06412058]
[1674145324664,28.84282355,1537.3,1537.2,0.06412058]
[1674145324860,29.86463018,1537.3,1537.2,0.06412058]
[1674145325235,29.86506096,1537.3,1537.2,0.06412058]
[1674145325392,28.5037389,1537.3,1537.2,0.06412058]
[1674145325592,19.34923229,1537.3,1537.2,0.06412058]
[1674145325801,19.18036444,1537.3,1537.2,0.06412058]
[1674145326229,17.5011946,1537.3,1537.2,0.06412058]
[1674145327434,18.52343201,1537.3,1537.2,0.06412058]
[1674145327957,18.52371337,1537.3,1537.2,0.06412058]
[1674145328971,17.50147379,1537.3,1537.2,0.06412058]
[1674145329182,17.84193862,1537.3,1537.2,0.06412058]
[1674145329634,18.18102327,1537.3,1537.2,0.06412058]
[1674145329953,19.20431449,1537.3,1537.2,0.06412058]
[1674145330174,19.20431186,1537.3,1537.2,0.06412058]
[1674145330492,19.20431285,1537.3,1537.2,0.06412058]
[1674145331288,18.18102327,1537.3,1537.2,0.06412058]
[1674145331852,9.40809803,1537.3,1537.2,0.06412058]
[1674145331997,1.20059832,1537.3,1537.2,0.06412058]
[1674145332206,1.13459832,1537.3,1537.2,0.22639663]
[1674145333008,1.13459832,1537.3,1537.2,1.74239663]
[1674145333364,1.13459832,1537.3,1537.2,1.72839663]
[1674145333740,0.45213362,1537.3,1537.2,1.72839663]
[1674145334417,0.45213362,1537.3,1537.2,0.06412058]
[1674145334831,0.70213362,1537.3,1537.2,0.06412058]
[1674145336748,1.38459832,1537.3,1537.2,0.06412058]
[1674145337188,0.70213362,1537.3,1537.2,0.06412058]
[1674145339825,7.88950832,1537.3,1537.2,0.06412058]
[1674145340156,7.95550832,1537.3,1537.2,0.06412058]
[1674145342322,18.77589826,1537.3,1537.2,0.06053912]
[1674145342677,18.43102327,1537.3,1537.2,0.06053912]
[1674145342842,21.08529807,1537.3,1537.2,0.06053912]
[1674145344994,19.43103984,1537.3,1537.2,0.06053912]
[1674145345777,18.74930784,1537.3,1537.2,0.06053912]
[1674145346913,20.11316205,1537.3,1537.2,0.06053912]
[1674145347366,19.09048785,1537.3,1537.2,0.06053912]
[1674145347571,21.81333396,1537.3,1537.2,0.04842531]
[1674145347818,21.98220181,1537.3,1537.2,0.04842531]
[1674145349428,23.68666426,1537.3,1537.2,0.04842531]
[1674145350778,25.05018221,1537.3,1537.2,0.04842531]
[1674145352050,23.68666426,1537.3,1537.2,0.04842531]
[1674145352936,22.71199609,1537.3,1537.2,0.04842531]
[1674145355667,22.37078128,1537.3,1537.2,0.04842531]
[1674145356986,21.00753364,1537.3,1537.2,0.04842531]
[1674145357147,22.7116432,1537.3,1537.2,0.04842531]
[1674145362333,22.71126943,1537.3,1537.2,0.04842531]
[1674145362592,22.71126943,1537.3,1537.2,0.03875336]
[1674145362593,21.00753364,1537.3,1537.2,0.03875336]
[1674145363331,22.71102795,1537.3,1537.2,0.03875336]
[1674145363911,21.00753364,1537.3,1537.2,0.03875336]
[1674145364332,20.94153364,1537.3,1537.2,0.03875336]
[1674145364993,22.64501767,1537.3,1537.2,0.03875336]
[1674145365796,22.53551767,1537.3,1537.2,0.03875336]
[1674145366279,23.89812972,1537.3,1537.2,0.03875336]
[1674145367852,22.19464569,1537.3,1537.2,0.03875336]
[1674145368073,23.96412972,1537.3,1537.2,0.03875336]
[1674145368746,22.26064569,1537.3,1537.2,0.03875336]
[1674145371008,18.26045753,1537.3,1537.2,0.03875336]
[1674145371221,18.77283743,1537.3,1537.2,0.03875336]
[1674145371648,17.75094896,1537.3,1537.2,0.03875336]
[1674145372171,7.95429137,1537.3,1537.2,0.03875336]
[1674145372736,0.76813362,1537.3,1537.2,1.71149269]
[1674145372928,0.70213362,1537.3,1537.2,1.71149269]
[1674145375364,1.38338137,1537.3,1537.2,1.71149269]
[1674145375579,1.38338137,1537.3,1537.2,1.55175336]
[1674145376284,0.70213362,1537.3,1537.2,1.55175336]
[1674145377736,1.38338137,1537.3,1537.2,1.55175336]
[1674145379839,2.40526984,1537.3,1537.2,1.55175336]
[1674145380505,0.70213362,1537.3,1537.2,1.55175336]
[1674145380736,0.70213362,1537.3,1537.2,0.19959269]
[1674145381607,0.70213362,1537.3,1537.2,1.70059269]
[1674145385248,0.70213362,1537.3,1537.2,3.21659269]
[1674145385578,0.70213362,1537.3,1537.2,9.72192269]
[1674145385892,0.70213362,1537.3,1537.2,3.28259269]
[1674145386209,0.70213362,1537.3,1537.2,3.21659269]
[1674145388401,0.69890147,1537.3,1537.2,3.21659269]
[1674145391144,0.69890147,1537.3,1537.2,11.22192269]
[1674145391455,0.69890147,1537.3,1537.2,11.28792269]
[1674145392141,0.69890147,1537.3,1537.2,17.79325269]
[1674145392359,0.405,1537.3,1537.2,20.01325269]
[1674145392697,0.405,1537.3,1537.2,23.01325269]
[1674145392698,0.905,1537.3,1537.2,23.01325269]
[1674145395721,0.905,1537.3,1537.2,21.51325269]
[1674145396352,0.905,1537.3,1537.2,20.01225269]
[1674145397702,0.905,1537.3,1537.2,19.78225269]
[1674145398175,0.905,1537.3,1537.2,19.29425269]
[1674145398345,0.905,1537.3,1537.2,12.78892269]
[1674145401296,0.905,1537.3,1537.2,9.78892269]
[1674145405028,0.905,1537.3,1537.2,6.77092269]
[1674145407475,0.905,1537.3,1537.2,0.10475336]
[1674145407658,0.905,1537.3,1537.2,2.03875336]
[1674145408410,7.41244215,1537.3,1537.2,2.03875336]
[1674145408581,8.1596899,1537.3,1537.2,2.03875336]
[1674145408788,14.6645999,1537.3,1537.2,2.03875336]
[1674145409150,17.18648837,1537.3,1537.2,2.03875336]
[1674145409315,17.43648837,1537.3,1537.2,2.03875336]
[1674145409533,15.93648837,1537.3,1537.2,2.03875336]
[1674145410618,14.9145999,1537.3,1537.2,2.03875336]
[1674145410769,16.4145999,1537.3,1537.2,2.03875336]
[1674145411243,15.93648837,1537.3,1537.2,2.03875336]
[1674145411561,14.91206775,1537.3,1537.2,2.03875336]
[1674145413610,17.43395622,1537.3,1537.2,2.03875336]
[1674145414084,15.93395622,1537.3,1537.2,2.03875336]
[1674145414762,14.91206775,1537.3,1537.2,2.03875336]
[1674145415502,14.91206775,1537.3,1537.2,2.03592901]
[1674145416389,15.93395622,1537.3,1537.2,2.03592901]
[1674145418648,14.91206775,1537.3,1537.2,2.03592901]
[1674145420538,8.40715775,1537.3,1537.2,2.03592901]
[1674145420750,7.72591,1537.3,1537.2,2.03592901]
[1674145422356,1.221,1537.3,1537.2,2.03592901]
[1674145422529,1.155,1537.3,1537.2,2.03592901]
[1674145428143,1.2645,1537.3,1537.2,2.03592901]
[1674145428384,1.155,1537.3,1537.2,2.24518591]
[1674145429214,1.155,1537.3,1537.2,2.03592901]
[1674145432713,1.39567602,1537.3,1537.2,2.03592901]
[1674145433498,2.07692377,1537.3,1537.2,2.03592901]
[1674145435502,3.57692377,1537.3,1537.2,2.03592901]
[1674145435759,2.07692377,1537.3,1537.2,2.03592901]
[1674145436505,3.09881224,1537.3,1537.2,2.03592901]
[1674145436658,2.07692377,1537.3,1537.2,2.03592901]
[1674145437223,15.09283413,1537.3,1537.2,2.03592901]
[1674145437388,21.66374413,1537.3,1537.2,2.03592901]
[1674145437603,20.64185566,1537.3,1537.2,2.03592901]
[1674145439355,22.45483969,1537.3,1537.2,2.03592901]
[1674145439524,20.75135566,1537.3,1537.2,2.03592901]
[1674145439963,20.75135566,1537.3,1537.2,2.03236191]
[1674145440372,21.77233411,1537.3,1537.2,2.03236191]
[1674145440707,20.40972206,1537.3,1537.2,2.03236191]
[1674145441487,20.75135566,1537.3,1537.2,2.03236191]
[1674145444145,21.09222764,1537.3,1537.2,2.03236191]
[1674145445625,22.45453178,1537.3,1537.2,2.03236191]
[1674145445855,21.09222764,1537.3,1537.2,2.03236191]
[1674145446060,22.45449428,1537.3,1537.2,2.03236191]
[1674145446276,21.09222764,1537.3,1537.2,2.03236191]
[1674145446447,22.45447567,1537.3,1537.2,2.03236191]
[1674145446659,21.09222764,1537.3,1537.2,2.03236191]
[1674145447415,22.45491609,1537.3,1537.2,2.03236191]
[1674145448010,21.09222764,1537.3,1537.2,2.03236191]
[1674145448220,20.98272764,1537.3,1537.2,2.03236191]
[1674145450006,20.64213839,1537.3,1537.2,2.03236191]
[1674145451163,20.98272764,1537.3,1537.2,2.03236191]
[1674145451538,21.09222764,1537.3,1537.2,2.03236191]
[1674145453991,21.09222764,1537.3,1537.2,1.56983261]
[1674145454204,21.74916007,1537.3,1537.2,1.56983261]
[1674145454679,21.8079258,1537.3,1537.2,1.56983261]
[1674145456379,22.85389428,1537.3,1537.2,1.56983261]
[1674145457624,24.21501661,1537.3,1537.2,1.56983261]
[1674145457842,22.51153258,1537.3,1537.2,1.56983261]
[1674145458305,21.85460015,1537.3,1537.2,1.56983261]
[1674145458725,20.91813167,1537.3,1537.2,1.56983261]
[1674145459412,21.26049337,1537.3,1537.2,1.56983261]
[1674145459565,20.67730427,1537.3,1537.2,1.56983261]
[1674145459779,22.3807883,1537.3,1537.2,1.56983261]
[1674145460028,21.67674978,1537.3,1537.2,1.56983261]
[1674145460296,21.01981735,1537.3,1537.2,1.56983261]
[1674145460430,21.67674978,1537.3,1537.2,1.56983261]
[1674145461184,22.86937708,1537.3,1537.2,1.56983261]
[1674145461534,21.33415878,1537.3,1537.2,1.56983261]
[1674145462898,21.67674978,1537.3,1537.2,1.56983261]
[1674145463106,21.50848405,1537.3,1537.2,1.56983261]
[1674145463318,21.67674978,1537.3,1537.2,1.56983261]
[1674145463471,21.50848405,1537.3,1537.2,1.56983261]
[1674145463685,21.67674978,1537.3,1537.2,1.56983261]
[1674145464165,22.86953681,1537.3,1537.2,1.56983261]
[1674145464496,21.33431851,1537.3,1537.2,1.56983261]
[1674145465105,21.67674978,1537.3,1537.2,1.56983261]
[1674145465999,21.56724978,1537.3,1537.2,1.56983261]
[1674145466279,22.10334495,1537.3,1537.2,1.56983261]
[1674145466430,22.27161068,1537.3,1537.2,1.56983261]
[1674145466801,20.91031735,1537.3,1537.2,1.56983261]
[1674145467601,22.10331367,1537.3,1537.2,1.56983261]
[1674145467822,22.2715794,1537.3,1537.2,1.56983261]
[1674145468584,22.10331367,1537.3,1537.2,1.56983261]
[1674145469118,18.88382964,1537.3,1537.2,1.56983261]
[1674145469954,19.9050842,1537.3,1537.2,1.56983261]
[1674145470643,16.61333661,1537.3,1537.2,1.56983261]
[1674145470840,8.74716456,1537.3,1537.2,1.56983261]
[1674145471057,1.90193959,1537.3,1537.2,1.56983261]
[1674145471311,2.85719415,1537.3,1537.2,1.56983261]
[1674145471706,2.17625456,1537.3,1537.2,1.56983261]
[1674145472937,3.53751661,1537.3,1537.2,1.56983261]
[1674145474197,2.85755969,1537.3,1537.2,1.56983261]
[1674145475264,2.17625456,1537.3,1537.2,1.56983261]
[1674145475961,2.85759861,1537.3,1537.2,1.56639491]
[1674145476130,2.17625456,1537.3,1537.2,1.56639491]
[1674145476337,2.51626205,1537.3,1537.2,1.56639491]
[1674145477214,3.538279,1537.3,1537.2,1.56639491]
[1674145477370,3.53836794,1537.3,1537.2,1.56639491]
[1674145477849,2.51626205,1537.3,1537.2,1.56639491]
[1674145478065,2.17704523,1537.3,1537.2,1.56639491]
[1674145479111,2.85838818,1537.3,1537.2,1.56639491]
[1674145479363,2.51626205,1537.3,1537.2,1.56639491]
[1674145480863,2.17663126,1537.3,1537.2,1.56639491]
[1674145482014,2.85769453,1537.3,1537.2,1.56639491]
[1674145482538,1.155,1537.3,1537.2,3.2446984]
[1674145482988,1.15210186,1537.3,1537.2,9.7500284]
[1674145484320,1.15210186,1537.3,1537.2,17.8213584]
[1674145484577,1.15210186,1537.3,1537.2,16.3213584]
[1674145484796,1.15210186,1537.3,1537.2,16.8093584]
[1674145485475,1.15210186,1537.3,1537.2,16.3213584]
[1674145488160,1.15210186,1537.3,1537.2,1.7946984]
[1674145488411,1.15210186,1537.3,1537.2,1.7286984]
[1674145488966,1.15210186,1537.3,1537.2,1.56639491]
[1674145494721,7.65701186,1537.3,1537.2,1.56639491]
[1674145494888,7.72301186,1537.3,1537.2,1.56639491]
[1674145497646,1.21810186,1537.3,1537.2,1.56639491]
[1674145497911,1.15210186,1537.3,1537.2,1.56639491]
[1674145499055,1.15210186,1537.3,1537.2,3.862124]
[1674145500461,1.15210186,1537.3,1537.2,6.635124]
[1674145500617,1.15210186,1537.3,1537.2,6.701124]
[1674145500828,1.15210186,1537.3,1537.2,14.478454]
[1674145501585,1.15210186,1537.3,1537.2,12.978454]
[1674145504917,1.15210186,1537.3,1537.2,14.478454]
[1674145505128,1.15210186,1537.3,1537.2,12.978454]
[1674145505866,1.15210186,1537.3,1537.2,11.705454]
[1674145506076,1.15210186,1537.3,1537.2,5.200124]
[1674145506286,1.15210186,1537.3,1537.2,2.90439491]
[1674145506547,1.15210186,1537.3,1537.2,2.83839491]
[1674145507655,1.15210186,1537.3,1537.2,2.83586815]
[1674145508523,1.15210186,1537.3,1537.2,1.56386815]
[1674145515819,1.15210186,1537.3,1537.2,3.06386815]
[1674145516046,1.15210186,1537.3,1537.2,4.00854456]
[1674145517247,1.15210186,1537.3,1537.2,1.56386815]
[1674145521695,1.15210186,1537.3,1537.2,3.06386815]
[1674145521912,1.15210186,1537.3,1537.2,11.96981796]
[1674145522070,1.15210186,1537.3,1537.2,12.03581796]
[1674145522805,1.15210186,1537.3,1537.2,10.90619815]
[1674145523009,1.15210186,1537.3,1537.2,15.37117492]
[1674145524289,1.15210186,1537.3,1537.2,14.10017492]
[1674145524702,1.15210186,1537.3,1537.2,12.60017492]
[1674145525423,1.15210186,1537.3,1537.2,8.13519815]
[1674145527631,1.15210186,1537.3,1537.2,9.63519815]
[1674145528476,1.15210186,1537.3,1537.2,8.13519815]
[1674145532106,1.15210186,1537.3,1537.2,9.63519815]
[1674145532469,0.74706327,1537.5,1537.2,11.15619815]
[1674145532687,8.36366327,1537.6,1537.4,1.521]
[1674145532976,0.066,1537.6,1537.5,1.5]
[1674145533261,0.804,1537.6,1537.5,20.31799028]
[1674145533470,0.804,1537.6,1537.5,19.254588]
[1674145533783,0.804,1537.6,1537.5,19.264588]
[1674145534403,0.804,1537.6,1537.5,39.26184403]
[1674145534565,0.804,1537.6,1537.5,20.06325603]
[1674145534938,1.82563126,1537.6,1537.5,0.066]
[1674145535162,0.804,1537.6,1537.5,2.0]
[1674145535462,2.30092059,1537.6,1537.5,2.0]
[1674145535682,12.27469138,1537.6,1537.5,2.0]
[1674145535824,13.23474319,1537.6,1537.5,2.0]
[1674145536039,23.37235276,1537.6,1537.5,2.0]
[1674145536252,24.02928519,1537.6,1537.5,1.61644455]
[1674145537403,25.38988983,1537.6,1537.5,1.61644455]
[1674145538453,23.6864058,1537.6,1537.5,1.61644455]
[1674145538981,23.02947337,1537.6,1537.5,1.61644455]
[1674145539681,24.7329574,1537.6,1537.5,1.61644455]
[1674145540050,23.83890559,1537.6,1537.5,1.61644455]
[1674145540800,23.53413864,1537.6,1537.5,1.61644455]
[1674145541188,24.89471672,1537.6,1537.5,1.61644455]
[1674145543309,22.29718088,1537.6,1537.5,1.61644455]
[1674145543519,23.99731158,1537.6,1537.5,1.61644455]
[1674145544048,22.29718088,1537.6,1537.5,1.61644455]
[1674145544240,24.33916398,1537.6,1537.5,1.61644455]
[1674145544658,27.33916398,1537.6,1537.5,1.61644455]
[1674145544975,27.33916398,1537.6,1537.1,0.05663995]
[1674145544976,13.00982,1537.3,1537.1,0.05663995]
[1674145545223,0.68006105,1537.2,1537.1,0.05663995]
[1674145545412,1.70015263,1537.2,1537.1,2.05663995]
[1674145545817,1.43006105,1537.2,1537.1,2.05663995]
[1674145547133,0.75,1537.2,1537.1,2.05663995]
[1674145550696,0.94379996,1537.2,1537.1,2.05663995]
[1674145555220,0.94379996,1537.2,1537.1,2.26230395]
[1674145556264,0.94379996,1537.2,1537.1,2.05663995]
[1674145564355,1.62386101,1537.2,1537.1,2.05663995]
[1674145564781,2.64395259,1537.2,1537.1,2.05663995]
[1674145565282,10.67028259,1537.2,1537.1,2.05663995]
[1674145565489,10.73628259,1537.2,1537.1,2.05366277]
[1674145565749,17.24161259,1537.2,1537.1,2.05366277]
[1674145568635,15.72061259,1537.2,1537.1,2.05366277]
[1674145568976,14.70052101,1537.2,1537.1,2.05366277]
[1674145570839,14.02045996,1537.2,1537.1,2.05366277]
[1674145571472,14.70052101,1537.2,1537.1,2.05366277]
[1674145572514,14.02045996,1537.2,1537.1,2.05366277]
[1674145572726,14.70052101,1537.2,1537.1,2.05366277]
[1674145573128,14.02045996,1537.2,1537.1,2.05366277]
[1674145573363,14.70052101,1537.2,1537.1,2.05366277]
[1674145574970,15.72061259,1537.2,1537.1,2.05366277]
[1674145575740,15.72058713,1537.2,1537.1,2.05366277]
[1674145576264,14.70049555,1537.2,1537.1,2.05366277]
[1674145577668,15.72058713,1537.2,1537.1,2.05366277]
[1674145577883,14.70049555,1537.2,1537.1,2.05366277]
[1674145578720,15.72058713,1537.2,1537.1,2.05366277]
[1674145578931,14.70049555,1537.2,1537.1,2.05366277]
[1674145579772,15.72058713,1537.2,1537.1,2.05366277]
[1674145580613,15.04055154,1537.2,1537.1,2.05366277]
[1674145583503,15.72122661,1537.2,1537.1,2.05366277]
[1674145583822,8.53522154,1537.2,1537.1,2.05366277]
[1674145583981,1.69055284,1537.2,1537.1,2.05366277]
[1674145584343,1.62455284,1537.2,1537.1,2.05366277]
[1674145585288,2.64464442,1537.2,1537.1,2.05366277]
[1674145585506,1.62455284,1537.2,1537.1,2.05366277]
[1674145585816,2.64464442,1537.2,1537.1,2.05366277]
[1674145586058,1.96389154,1537.2,1537.1,2.05366277]
[1674145587582,2.64481064,1537.2,1537.1,2.05115785]
[1674145590434,1.62471906,1537.2,1537.1,2.05115785]
[1674145591083,0.94379996,1537.2,1537.1,2.05115785]
[1674145591893,0.94379996,1537.2,1537.1,2.41287364]
[1674145594458,0.94379996,1537.2,1537.1,2.05115785]
[1674145596711,2.64481064,1537.2,1537.1,2.05115785]
[1674145596926,9.15014064,1537.2,1537.1,2.05115785]
[1674145597135,9.21614064,1537.2,1537.1,2.05115785]
[1674145598346,8.19604906,1537.2,1537.1,2.05115785]
[1674145598878,9.21614064,1537.2,1537.1,2.05115785]
[1674145599028,8.19604906,1537.2,1537.1,2.05115785]
[1674145599442,8.53522154,1537.2,1537.1,2.05115785]
[1674145602511,9.21707823,1537.2,1537.1,2.05115785]
[1674145602738,15.04055154,1537.2,1537.1,2.05115785]
[1674145603991,16.40067364,1537.2,1537.1,2.05115785]
[1674145604234,15.38058206,1537.2,1537.1,2.05115785]
[1674145604385,21.89348228,1537.2,1537.1,2.05115785]
[1674145604855,20.19332965,1537.2,1537.1,2.05115785]
[1674145605222,9.89815986,1537.2,1537.1,2.05115785]
[1674145605548,1.69178854,1537.2,1537.1,2.25627363]
[1674145605753,1.62578854,1537.2,1537.1,2.05115785]
[1674145609368,1.96670776,1537.2,1537.1,2.05115785]
[1674145609769,2.64887082,1537.2,1537.1,2.05115785]
[1674145610176,1.62596302,1537.2,1537.1,2.05115785]
[1674145610602,8.13129302,1537.2,1537.1,2.05115785]
[1674145610818,8.19729302,1537.2,1537.1,2.05115785]
[1674145611086,9.22020082,1537.2,1537.1,2.05115785]
[1674145611295,2.71487082,1537.2,1537.1,2.05115785]
[1674145611519,2.64887082,1537.2,1537.1,2.05115785]
[1674145612804,1.96670776,1537.2,1537.1,2.04865736]
[1674145614052,8.47203776,1537.2,1537.1,2.04865736]
[1674145614380,9.2202132,1537.2,1537.1,2.04865736]
[1674145615118,8.53803776,1537.2,1537.1,2.04865736]
[1674145615432,9.22041435,1537.2,1537.1,2.04865736]
[1674145615788,8.53803776,1537.2,1537.1,2.04865736]
[1674145616877,9.22030446,1537.2,1537.1,2.04865736]
[1674145617785,1.69206666,1537.2,1537.1,2.04865736]
[1674145618020,1.62606666,1537.2,1537.1,2.25431592]
[1674145619413,1.62606666,1537.2,1537.1,2.04865736]
[1674145620363,2.64897446,1537.2,1537.1,2.04865736]
[1674145620576,2.64906516,1537.2,1537.1,2.04865736]
[1674145620897,2.64907297,1537.2,1537.1,2.04865736]
[1674145621097,1.96670776,1537.2,1537.1,2.04865736]
[1674145621676,1.62621097,1537.2,1537.1,2.04865736]
[1674145622098,2.64911877,1537.2,1537.1,2.04865736]
[1674145624025,1.62621097,1537.2,1537.1,2.04865736]
[1674145624624,2.64911877,1537.2,1537.1,2.04865736]
[1674145624938,2.39448185,1537.2,1537.1,2.04865736]
[1674145625149,2.73169615,1537.2,1537.1,2.04865736]
[1674145626642,2.39523776,1537.2,1537.1,2.04865736]
[1674145627322,8.47279367,1537.2,1537.1,2.04865736]
[1674145627624,8.53879367,1537.2,1537.1,2.04547409]
[1674145628259,9.89891577,1537.2,1537.1,2.04547409]
[1674145628426,11.39891577,1537.2,1537.1,2.04547409]
[1674145628640,9.89891577,1537.2,1537.1,2.04547409]
[1674145629313,9.79891577,1537.2,1537.1,2.04547409]
[1674145630028,8.43879367,1537.2,1537.1,2.04547409]
[1674145631940,9.12100563,1537.2,1537.1,2.04547409]
[1674145632513,8.09734192,1537.2,1537.1,2.04547409]
[1674145633095,9.12100563,1537.2,1537.1,2.04547409]
[1674145633265,9.12104078,1537.2,1537.1,2.04547409]
[1674145634883,1.59204707,1537.2,1537.1,2.04547409]
[1674145635202,1.52604707,1537.2,1537.1,2.04547409]
[1674145635994,1.52604707,1537.2,1537.1,1.94547409]
[1674145641076,0.84379996,1537.2,1537.1,1.94547409]
[1674145641285,1.52604707,1537.2,1537.1,1.94547409]
[1674145642030,0.84379996,1537.2,1537.1,1.94547409]
[1674145642627,1.52235205,1537.2,1537.1,1.94547409]
[1674145642842,0.84010494,1537.2,1537.1,1.94547409]
[1674145643383,0.84010494,1537.2,1537.1,2.2966215]
[1674145644128,0.84010494,1537.2,1537.1,3.8176215]
[1674145644327,0.84010494,1537.2,1537.1,19.45879007]
[1674145644569,0.84010494,1537.2,1537.1,19.52479007]
[1674145644987,0.84010494,1537.2,1537.1,23.44137141]
[1674145645161,0.84010494,1537.2,1537.1,25.93220173]
[1674145645567,0.84010494,1537.2,1537.1,25.93575446]
[1674145645777,0.84010494,1537.2,1537.1,24.90998113]
[1674145646299,0.84010494,1537.2,1537.1,23.40689741]
[1674145646550,0.84010494,1537.2,1537.1,22.72777482]
[1674145647055,0.84010494,1537.2,1537.1,23.40998113]
[1674145647272,0.84010494,1537.2,1537.1,22.72777482]
[1674145647672,0.84010494,1537.2,1537.1,23.40998113]
[1674145647884,0.84010494,1537.2,1537.1,24.92398113]
[1674145648126,0.84010494,1537.2,1537.1,24.24177482]
[1674145649079,0.066,1537.7,1537.2,3.92417748]
[1674145649289,0.033,1537.5,1537.4,1.5]
[1674145649499,0.033,1537.5,1537.4,19.49659286]
[1674145649832,0.033,1537.5,1537.4,22.56259286]
[1674145650170,0.033,1537.5,1537.4,24.56259286]
[1674145650493,0.283,1537.5,1537.4,24.56259286]
[1674145650806,0.283,1537.5,1537.4,44.55984889]
[1674145650953,0.533,1537.5,1537.4,44.55984889]
[1674145654156,0.533,1537.5,1537.4,43.05984889]
[1674145661162,0.533,1537.5,1537.4,41.30884889]
[1674145662670,0.533,1537.5,1537.4,31.56773603]
[1674145663050,0.533,1537.5,1537.4,28.56773603]
[1674145663716,0.533,1537.5,1537.4,22.06325603]
[1674145668975,0.533,1537.5,1537.4,36.58621603]
[1674145669989,0.53041619,1537.5,1537.4,36.58621603]
[1674145670199,0.53041619,1537.5,1537.4,42.22167063]
[1674145672119,0.53041619,1537.5,1537.4,45.22167063]
[1674145675662,0.53041619,1537.5,1537.4,43.70767063]
[1674145677420,0.53041619,1537.5,1537.4,43.70567063]
[1674145677560,0.53041619,1537.5,1537.4,43.70767063]
[1674145678829,0.43041619,1537.5,1537.4,43.70767063]
[1674145679599,0.43041619,1537.5,1537.4,22.06325603]
[1674145680241,0.68041619,1537.5,1537.4,2.066]
[1674145680398,0.68041619,1537.5,1537.4,2.0]
[1674145686740,1.3626633,1537.5,1537.4,2.0]
[1674145687159,2.8626633,1537.5,1537.4,2.0]
[1674145687370,2.18041619,1537.5,1537.4,2.0]
[1674145687611,2.86160141,1537.5,1537.4,2.0]
[1674145687828,1.36160141,1537.5,1537.4,2.0]
[1674145687988,10.16232512,1537.5,1537.4,2.0]
[1674145688196,9.5471399,1537.5,1537.4,2.0]
[1674145688463,11.38359829,1537.5,1537.4,2.0]
[1674145688623,13.08375092,1537.5,1537.4,2.0]
[1674145689489,11.38359829,1537.5,1537.4,2.0]
[1674145689728,9.88359829,1537.5,1537.4,2.0]
[1674145689912,11.38359829,1537.5,1537.4,2.0]
[1674145690102,12.40503565,1537.5,1537.4,2.0]
[1674145690314,11.38359829,1537.5,1537.4,2.0]
[1674145690519,18.90864036,1537.5,1537.4,2.0]
[1674145690747,20.96484307,1537.5,1537.4,2.0]
[1674145691156,22.89646856,1537.5,1537.4,2.0]
[1674145691539,22.89646856,1537.5,1537.4,1.22749009]
[1674145691725,23.22129501,1537.5,1537.4,1.22749009]
[1674145691965,25.1855118,1537.5,1537.4,1.22749009]
[1674145692243,25.1855118,1537.5,1537.4,0.50219636]
[1674145692244,27.82332553,1537.5,1537.4,0.50219636]
[1674145692404,25.78314238,1537.5,1537.4,0.50219636]
[1674145692613,26.44007481,1537.5,1537.4,0.50219636]
[1674145693033,28.14015402,1537.5,1537.4,0.50219636]
[1674145693244,26.44007481,1537.5,1537.4,0.50219636]
[1674145693716,26.44007481,1537.5,1537.4,0.4994504]
[1674145694545,27.48202006,1537.5,1537.4,0.4994504]
[1674145694754,28.13895249,1537.5,1537.4,0.4994504]
[1674145696744,28.13895249,1537.5,1537.4,0.49670444]
[1674145698302,29.49685084,1537.5,1537.4,0.49670444]
[1674145701056,28.13895249,1537.5,1537.4,0.49670444]
[1674145701266,27.7975876,1537.5,1537.4,0.49670444]
[1674145703631,29.49646528,1537.5,1537.4,0.49670444]
[1674145704210,29.02575969,1537.5,1537.4,0.21589006]
[1674145705414,29.49616643,1537.5,1537.4,0.21589006]
[1674145705822,28.23416643,1537.5,1537.4,0.21589006]
[1674145706215,26.53528875,1537.5,1537.4,0.1422675]
[1674145706791,28.23416643,1537.5,1537.4,0.1422675]
[1674145708253,26.87695249,1537.5,1537.4,0.1422675]
[1674145708939,28.23518037,1537.5,1537.4,0.1422675]
[1674145709367,26.87695249,1537.5,1537.4,0.1422675]
[1674145709614,27.76375969,1537.5,1537.4,0.1422675]
[1674145710864,29.71821013,1537.5,1537.4,0.1422675]
[1674145711258,27.76328675,1537.5,1537.4,0.1422675]
[1674145711469,26.06488201,1537.5,1537.4,0.1422675]
[1674145714221,26.06488201,1537.5,1537.4,0.06269111]
[1674145714410,26.56488201,1537.5,1537.4,0.06269111]
[1674145714874,28.26413114,1537.5,1537.4,0.06269111]
[1674145715829,26.56488201,1537.5,1537.4,0.06269111]